[Event "Titled Tuesday Blitz August 16 Early 2022"]
[White "Turzo, Attila"]
[Black "Munkhgal, Gombosuren"]
[WhiteFideId "704954"]
[BlackFideId "4901266"]
[WhiteElo "2298"]
[BlackElo "2576"]
[Result "0-1"]
[Round "01"]
[TimeControl "180+2"]
[Date "2022.08.18"]
[WhiteClock "0:00:00"]
[BlackClock "0:00:00"]

1. e4 {[%clk 0:00:00]}  e6 {[%clk 0:00:00]} 2. d4 {[%clk 0:00:00]}  d5 {[%clk 0:00:00]} 3. Nd2 {[%clk 0:00:00]}  c5 {[%clk 0:00:00]} 4. Ngf3 {[%clk 0:00:00]}  cxd4 {[%clk 0:00:00]} 5. exd5 {[%clk 0:00:00]}  Qxd5 {[%clk 0:00:00]} 6. Bc4 {[%clk 0:00:00]}  Qd6 {[%clk 0:00:00]} 7. O-O {[%clk 0:00:00]}  Nf6 {[%clk 0:00:00]} 8. Nb3 {[%clk 0:00:00]}  Nc6 {[%clk 0:00:00]} 9. Nbxd4 {[%clk 0:00:00]}  Nxd4 {[%clk 0:00:00]} 10. Qxd4 {[%clk 0:00:00]}  a6 {[%clk 0:00:00]} 11. Rd1 {[%clk 0:00:00]}  Qxd4 {[%clk 0:00:00]} 12. Nxd4 {[%clk 0:00:00]}  Bd7 {[%clk 0:00:00]} 13. Bf4 {[%clk 0:00:00]}  Rc8 {[%clk 0:00:00]} 14. Bb3 {[%clk 0:00:00]}  Bc5 {[%clk 0:00:00]} 15. c3 {[%clk 0:00:00]}  O-O {[%clk 0:00:00]} 16. Nf3 {[%clk 0:00:00]}  Rfd8 {[%clk 0:00:00]} 17. Bd6 {[%clk 0:00:00]}  Bxd6 {[%clk 0:00:00]} 18. Rxd6 {[%clk 0:00:00]}  Bc6 {[%clk 0:00:00]} 19. Rxd8+ {[%clk 0:00:00]}  Rxd8 {[%clk 0:00:00]} 20. Nd4 {[%clk 0:00:00]}  Bd5 {[%clk 0:00:00]} 21. Bxd5 {[%clk 0:00:00]}  Rxd5 {[%clk 0:00:00]} 22. Kf1 {[%clk 0:00:00]}  e5 {[%clk 0:00:00]} 23. Nf3 {[%clk 0:00:00]}  g6 {[%clk 0:00:00]} 24. Ke2 {[%clk 0:00:00]}  e4 {[%clk 0:00:00]} 25. Nd4 {[%clk 0:00:00]}  Ng4 {[%clk 0:00:00]} 26. f3 {[%clk 0:00:00]}  exf3+ {[%clk 0:00:00]} 27. Nxf3 {[%clk 0:00:00]}  Rd7 {[%clk 0:00:00]} 28. h3 {[%clk 0:00:00]}  Re7+ {[%clk 0:00:00]} 29. Kd2 {[%clk 0:00:00]}  Ne3 {[%clk 0:00:00]} 30. Re1 {[%clk 0:00:00]}  Nc4+ {[%clk 0:00:00]} 31. Kc2 {[%clk 0:00:00]}  Rd7 {[%clk 0:00:00]} 32. b3 {[%clk 0:00:00]}  Na3+ {[%clk 0:00:00]} 33. Kb2 {[%clk 0:00:00]}  Nb5 {[%clk 0:00:00]} 34. c4 {[%clk 0:00:00]}  Nc7 {[%clk 0:00:00]} 35. Kc3 {[%clk 0:00:00]}  f6 {[%clk 0:00:00]} 36. Nd4 {[%clk 0:00:00]}  Kf7 {[%clk 0:00:00]} 37. b4 {[%clk 0:00:00]}  h5 {[%clk 0:00:00]} 38. g4 {[%clk 0:00:00]}  hxg4 {[%clk 0:00:00]} 39. hxg4 {[%clk 0:00:00]}  Rd8 {[%clk 0:00:00]} 40. Rh1 {[%clk 0:00:00]}  Kg7 {[%clk 0:00:00]} 41. Re1 {[%clk 0:00:00]}  Kf7 {[%clk 0:00:00]} 42. Rh1 {[%clk 0:00:00]}  Kg7 {[%clk 0:00:00]} 43. Re1 {[%clk 0:00:00]}  Rd7 {[%clk 0:00:00]} 44. Ne6+ {[%clk 0:00:00]}  Nxe6 {[%clk 0:00:00]} 45. Rxe6 {[%clk 0:00:00]}  f5 {[%clk 0:00:00]} 46. g5 {[%clk 0:00:00]}  Rf7 {[%clk 0:00:00]} 47. Kd3 {[%clk 0:00:00]}  Rd7+ {[%clk 0:00:00]} 48. Ke3 {[%clk 0:00:00]}  Kf7 {[%clk 0:00:00]} 49. Rf6+ {[%clk 0:00:00]}  Kg7 {[%clk 0:00:00]} 50. Re6 {[%clk 0:00:00]}  Rc7 {[%clk 0:00:00]} 51. c5 {[%clk 0:00:00]}  a5 {[%clk 0:00:00]} 52. a3 {[%clk 0:00:00]}  axb4 {[%clk 0:00:00]} 53. axb4 {[%clk 0:00:00]}  Kf7 {[%clk 0:00:00]} 54. Rf6+ {[%clk 0:00:00]}  Kg7 {[%clk 0:00:00]} 55. Re6 {[%clk 0:00:00]}  Rf7 {[%clk 0:00:00]} 56. Kf4 {[%clk 0:00:00]}  Rc7 {[%clk 0:00:00]} 57. Ke5 {[%clk 0:00:00]}  Rf7 {[%clk 0:00:00]} 58. Kf4 {[%clk 0:00:00]}  Rc7 {[%clk 0:00:00]} 59. Rb6 {[%clk 0:00:00]}  Re7 {[%clk 0:00:00]} 60. Kf3 {[%clk 0:00:00]}  Kf7 {[%clk 0:00:00]} 61. Rf6+ {[%clk 0:00:00]}  Kg7 {[%clk 0:00:00]} 62. Rb6 {[%clk 0:00:00]}  Kf7 {[%clk 0:00:00]} 63. b5 {[%clk 0:00:00]}  Rc7 {[%clk 0:00:00]} 64. c6 {[%clk 0:00:00]}  bxc6 {[%clk 0:00:00]} 65. bxc6 {[%clk 0:00:00]}  Ke6 {[%clk 0:00:00]} 66. Kf4 {[%clk 0:00:00]}  Kd5 {[%clk 0:00:00]} 67. Rb5+ {[%clk 0:00:00]}  Kxc6 {[%clk 0:00:00]} 0-1


[Site "https://www.chess.com"]

[Event "Titled Tuesday Blitz August 16 Early 2022"]
[White "Vakhlamov, Igor L."]
[Black "Gil Alba, Hector Luis"]
[WhiteFideId "24126748"]
[BlackFideId "3504670"]
[WhiteElo "2401"]
[BlackElo "2331"]
[Result "1-0"]
[Round "01"]
[TimeControl "180+2"]
[Date "2022.08.18"]
[WhiteClock "0:00:00"]
[BlackClock "0:00:00"]

1. e4 {[%clk 0:00:00]}  e5 {[%clk 0:00:00]} 2. Nf3 {[%clk 0:00:00]}  Nc6 {[%clk 0:00:00]} 3. Nc3 {[%clk 0:00:00]}  Nf6 {[%clk 0:00:00]} 4. Bb5 {[%clk 0:00:00]}  Bb4 {[%clk 0:00:00]} 5. Nd5 {[%clk 0:00:00]}  Be7 {[%clk 0:00:00]} 6. Nxe7 {[%clk 0:00:00]}  Qxe7 {[%clk 0:00:00]} 7. O-O {[%clk 0:00:00]}  O-O {[%clk 0:00:00]} 8. Re1 {[%clk 0:00:00]}  d6 {[%clk 0:00:00]} 9. h3 {[%clk 0:00:00]}  Nd8 {[%clk 0:00:00]} 10. c3 {[%clk 0:00:00]}  Ne6 {[%clk 0:00:00]} 11. d4 {[%clk 0:00:00]}  c6 {[%clk 0:00:00]} 12. Bf1 {[%clk 0:00:00]}  Qc7 {[%clk 0:00:00]} 13. a4 {[%clk 0:00:00]}  Rd8 {[%clk 0:00:00]} 14. a5 {[%clk 0:00:00]}  Nf8 {[%clk 0:00:00]} 15. Bg5 {[%clk 0:00:00]}  N8d7 {[%clk 0:00:00]} 16. b4 {[%clk 0:00:00]}  h6 {[%clk 0:00:00]} 17. Bh4 {[%clk 0:00:00]}  Re8 {[%clk 0:00:00]} 18. Bd3 {[%clk 0:00:00]}  Nh7 {[%clk 0:00:00]} 19. Qb3 {[%clk 0:00:00]}  Ndf8 {[%clk 0:00:00]} 20. Rad1 {[%clk 0:00:00]}  Ng6 {[%clk 0:00:00]} 21. Bg3 {[%clk 0:00:00]}  Be6 {[%clk 0:00:00]} 22. Qc2 {[%clk 0:00:00]}  Ng5 {[%clk 0:00:00]} 23. Nxg5 {[%clk 0:00:00]}  hxg5 {[%clk 0:00:00]} 24. d5 {[%clk 0:00:00]}  Bd7 {[%clk 0:00:00]} 25. c4 {[%clk 0:00:00]}  c5 {[%clk 0:00:00]} 26. bxc5 {[%clk 0:00:00]}  Qxc5 {[%clk 0:00:00]} 27. Rb1 {[%clk 0:00:00]}  Rab8 {[%clk 0:00:00]} 28. Qd2 {[%clk 0:00:00]}  Nf4 {[%clk 0:00:00]} 29. Bf1 {[%clk 0:00:00]}  f6 {[%clk 0:00:00]} 30. Qb4 {[%clk 0:00:00]}  b6 {[%clk 0:00:00]} 31. axb6 {[%clk 0:00:00]}  axb6 {[%clk 0:00:00]} 32. Kh2 {[%clk 0:00:00]}  Rec8 {[%clk 0:00:00]} 33. Rb2 {[%clk 0:00:00]}  Rc7 {[%clk 0:00:00]} 34. Reb1 {[%clk 0:00:00]}  Rcb7 {[%clk 0:00:00]} 35. Qxc5 {[%clk 0:00:00]}  dxc5 {[%clk 0:00:00]} 36. f3 {[%clk 0:00:00]}  Kf7 {[%clk 0:00:00]} 37. Bf2 {[%clk 0:00:00]}  Bc8 {[%clk 0:00:00]} 38. g3 {[%clk 0:00:00]}  Ng6 {[%clk 0:00:00]} 39. Kg2 {[%clk 0:00:00]}  Ke7 {[%clk 0:00:00]} 40. Be2 {[%clk 0:00:00]}  Kd6 {[%clk 0:00:00]} 41. Bd1 {[%clk 0:00:00]}  Bd7 {[%clk 0:00:00]} 42. Ra1 {[%clk 0:00:00]}  Ne7 {[%clk 0:00:00]} 43. Ra6 {[%clk 0:00:00]}  Nc8 {[%clk 0:00:00]} 44. Rba2 {[%clk 0:00:00]}  Kc7 {[%clk 0:00:00]} 45. g4 {[%clk 0:00:00]}  Nd6 {[%clk 0:00:00]} 46. Be2 {[%clk 0:00:00]}  Nc8 {[%clk 0:00:00]} 47. h4 {[%clk 0:00:00]}  gxh4 {[%clk 0:00:00]} 48. Bxh4 {[%clk 0:00:00]}  g5 {[%clk 0:00:00]} 49. Bf2 {[%clk 0:00:00]}  Nd6 {[%clk 0:00:00]} 50. Ra1 {[%clk 0:00:00]}  Rh8 {[%clk 0:00:00]} 51. Ra8 {[%clk 0:00:00]}  Rxa8 {[%clk 0:00:00]} 52. Rxa8 {[%clk 0:00:00]}  Rb8 {[%clk 0:00:00]} 53. Ra7+ {[%clk 0:00:00]}  Rb7 {[%clk 0:00:00]} 54. Ra8 {[%clk 0:00:00]}  Rb8 {[%clk 0:00:00]} 55. Ra7+ {[%clk 0:00:00]}  Rb7 {[%clk 0:00:00]} 56. Ra1 {[%clk 0:00:00]}  Rb8 {[%clk 0:00:00]} 57. Be3 {[%clk 0:00:00]}  Rh8 {[%clk 0:00:00]} 58. Ra7+ {[%clk 0:00:00]}  Nb7 {[%clk 0:00:00]} 59. Bd1 {[%clk 0:00:00]}  Kb8 {[%clk 0:00:00]} 60. Ra1 {[%clk 0:00:00]}  Na5 {[%clk 0:00:00]} 61. Bxc5 {[%clk 0:00:00]}  Nxc4 {[%clk 0:00:00]} 62. Bf2 {[%clk 0:00:00]}  Kb7 {[%clk 0:00:00]} 63. Be2 {[%clk 0:00:00]}  Nd6 {[%clk 0:00:00]} 64. Ba6+ {[%clk 0:00:00]}  Kc7 {[%clk 0:00:00]} 65. Rc1+ {[%clk 0:00:00]}  Kd8 {[%clk 0:00:00]} 66. Bxb6+ {[%clk 0:00:00]}  Ke7 {[%clk 0:00:00]} 67. Rc7 {[%clk 0:00:00]}  Ra8 {[%clk 0:00:00]} 68. Bf1 {[%clk 0:00:00]}  Ra2+ {[%clk 0:00:00]} 69. Kg3 {[%clk 0:00:00]}  Ke8 {[%clk 0:00:00]} 70. Bc5 {[%clk 0:00:00]}  Nc8 {[%clk 0:00:00]} 71. Rb7 {[%clk 0:00:00]}  Rc2 {[%clk 0:00:00]} 72. Bf2 {[%clk 0:00:00]}  Nd6 {[%clk 0:00:00]} 73. Rb6 {[%clk 0:00:00]}  Ke7 {[%clk 0:00:00]} 74. Be1 {[%clk 0:00:00]}  Rc1 {[%clk 0:00:00]} 75. Kf2 {[%clk 0:00:00]}  Rc2+ {[%clk 0:00:00]} 76. Ke3 {[%clk 0:00:00]}  Kd8 {[%clk 0:00:00]} 77. Rxd6 {[%clk 0:00:00]}  Kc7 {[%clk 0:00:00]} 78. Rxf6 {[%clk 0:00:00]}  Rc1 {[%clk 0:00:00]} 79. Ba5+ {[%clk 0:00:00]} 1-0


[Site "https://www.chess.com"]

[Event "Titled Tuesday Blitz August 16 Early 2022"]
[White "Vusatiuk, Vladimir"]
[Black "Goltsev, Dmitry"]
[WhiteFideId "14118610"]
[BlackFideId "24176710"]
[WhiteElo "2157"]
[BlackElo "2258"]
[Result "1-0"]
[Round "01"]
[TimeControl "180+2"]
[Date "2022.08.18"]
[WhiteClock "0:00:00"]
[BlackClock "0:00:00"]

1. d4 {[%clk 0:00:00]}  Nf6 {[%clk 0:00:00]} 2. c4 {[%clk 0:00:00]}  e6 {[%clk 0:00:00]} 3. Nc3 {[%clk 0:00:00]}  Bb4 {[%clk 0:00:00]} 4. Qc2 {[%clk 0:00:00]}  Qe7 {[%clk 0:00:00]} 5. Nf3 {[%clk 0:00:00]}  b6 {[%clk 0:00:00]} 6. a3 {[%clk 0:00:00]}  Bxc3+ {[%clk 0:00:00]} 7. Qxc3 {[%clk 0:00:00]}  Bb7 {[%clk 0:00:00]} 8. e3 {[%clk 0:00:00]}  Ne4 {[%clk 0:00:00]} 9. Qc2 {[%clk 0:00:00]}  d6 {[%clk 0:00:00]} 10. Bd3 {[%clk 0:00:00]}  f5 {[%clk 0:00:00]} 11. O-O {[%clk 0:00:00]}  Nd7 {[%clk 0:00:00]} 12. Nd2 {[%clk 0:00:00]}  Nxd2 {[%clk 0:00:00]} 13. Bxd2 {[%clk 0:00:00]}  Nf6 {[%clk 0:00:00]} 14. f3 {[%clk 0:00:00]}  O-O {[%clk 0:00:00]} 15. b4 {[%clk 0:00:00]}  g6 {[%clk 0:00:00]} 16. e4 {[%clk 0:00:00]}  fxe4 {[%clk 0:00:00]} 17. fxe4 {[%clk 0:00:00]}  e5 {[%clk 0:00:00]} 18. d5 {[%clk 0:00:00]}  Nh5 {[%clk 0:00:00]} 19. c5 {[%clk 0:00:00]}  bxc5 {[%clk 0:00:00]} 20. bxc5 {[%clk 0:00:00]}  dxc5 {[%clk 0:00:00]} 21. Qb3 {[%clk 0:00:00]}  c4 {[%clk 0:00:00]} 22. Bxc4 {[%clk 0:00:00]}  Kg7 {[%clk 0:00:00]} 23. Rxf8 {[%clk 0:00:00]}  Rxf8 {[%clk 0:00:00]} 24. Bb4 {[%clk 0:00:00]}  c5 {[%clk 0:00:00]} 25. dxc6 {[%clk 0:00:00]}  Qd8 {[%clk 0:00:00]} 26. Bxf8+ {[%clk 0:00:00]}  Kxf8 {[%clk 0:00:00]} 27. Rf1+ {[%clk 0:00:00]}  Kg7 {[%clk 0:00:00]} 28. cxb7 {[%clk 0:00:00]}  Qb8 {[%clk 0:00:00]} 29. Bd5 {[%clk 0:00:00]}  Nf4 {[%clk 0:00:00]} 30. Qb2 {[%clk 0:00:00]}  Kh6 {[%clk 0:00:00]} 31. Qc2 {[%clk 0:00:00]}  Qd6 {[%clk 0:00:00]} 32. Qc8 {[%clk 0:00:00]}  Qb6+ {[%clk 0:00:00]} 33. Kh1 {[%clk 0:00:00]}  Qb2 {[%clk 0:00:00]} 34. Rg1 {[%clk 0:00:00]}  Nd3 {[%clk 0:00:00]} 35. h3 {[%clk 0:00:00]}  Nf2+ {[%clk 0:00:00]} 36. Kh2 {[%clk 0:00:00]}  Qd2 {[%clk 0:00:00]} 37. Qc1 {[%clk 0:00:00]}  Qf4+ {[%clk 0:00:00]} 38. Qxf4+ {[%clk 0:00:00]}  exf4 {[%clk 0:00:00]} 39. b8=Q {[%clk 0:00:00]}  g5 {[%clk 0:00:00]} 40. e5 {[%clk 0:00:00]}  g4 {[%clk 0:00:00]} 41. hxg4 {[%clk 0:00:00]}  Nxg4+ {[%clk 0:00:00]} 42. Kh3 {[%clk 0:00:00]}  Kh5 {[%clk 0:00:00]} 43. Qe8+ {[%clk 0:00:00]}  Kg5 {[%clk 0:00:00]} 44. Qg8+ {[%clk 0:00:00]}  Kh5 {[%clk 0:00:00]} 45. Qxg4+ {[%clk 0:00:00]}  Kh6 {[%clk 0:00:00]} 46. g3 {[%clk 0:00:00]}  fxg3 {[%clk 0:00:00]} 47. Rh1 {[%clk 0:00:00]}  g2 {[%clk 0:00:00]} 48. Kxg2# {[%clk 0:00:00]} 1-0


[Site "https://www.chess.com"]

[Event "Titled Tuesday Blitz August 16 Early 2022"]
[White "Xie, Bryan"]
[Black "Secer, Ata"]
[WhiteFideId "30941296"]
[BlackFideId "6303293"]
[WhiteElo "1899"]
[BlackElo "2282"]
[Result "0-1"]
[Round "01"]
[TimeControl "180+2"]
[Date "2022.08.18"]
[WhiteClock "0:00:00"]
[BlackClock "0:00:00"]

1. d4 {[%clk 0:00:00]}  d5 {[%clk 0:00:00]} 2. Nf3 {[%clk 0:00:00]}  Nf6 {[%clk 0:00:00]} 3. Bf4 {[%clk 0:00:00]}  c5 {[%clk 0:00:00]} 4. e3 {[%clk 0:00:00]}  Nc6 {[%clk 0:00:00]} 5. Nbd2 {[%clk 0:00:00]}  cxd4 {[%clk 0:00:00]} 6. exd4 {[%clk 0:00:00]}  Bg4 {[%clk 0:00:00]} 7. c3 {[%clk 0:00:00]}  e6 {[%clk 0:00:00]} 8. Qb3 {[%clk 0:00:00]}  Qc8 {[%clk 0:00:00]} 9. h3 {[%clk 0:00:00]}  Bxf3 {[%clk 0:00:00]} 10. Nxf3 {[%clk 0:00:00]}  Be7 {[%clk 0:00:00]} 11. Bd3 {[%clk 0:00:00]}  O-O {[%clk 0:00:00]} 12. O-O {[%clk 0:00:00]}  Ne8 {[%clk 0:00:00]} 13. Qc2 {[%clk 0:00:00]}  g6 {[%clk 0:00:00]} 14. Bh6 {[%clk 0:00:00]}  Ng7 {[%clk 0:00:00]} 15. Rae1 {[%clk 0:00:00]}  Bd6 {[%clk 0:00:00]} 16. Ne5 {[%clk 0:00:00]}  Nxe5 {[%clk 0:00:00]} 17. dxe5 {[%clk 0:00:00]}  Bc5 {[%clk 0:00:00]} 18. Qd2 {[%clk 0:00:00]}  Qc7 {[%clk 0:00:00]} 19. Qf4 {[%clk 0:00:00]}  Be7 {[%clk 0:00:00]} 20. Re3 {[%clk 0:00:00]}  f5 {[%clk 0:00:00]} 21. exf6 {[%clk 0:00:00]}  Qxf4 {[%clk 0:00:00]} 22. Bxf4 {[%clk 0:00:00]}  Bxf6 {[%clk 0:00:00]} 23. Rfe1 {[%clk 0:00:00]}  Bxc3 {[%clk 0:00:00]} 24. Bd6 {[%clk 0:00:00]}  Bxe1 {[%clk 0:00:00]} 25. Bxf8 {[%clk 0:00:00]}  Bxf2+ {[%clk 0:00:00]} 26. Kxf2 {[%clk 0:00:00]}  Rxf8+ {[%clk 0:00:00]} 27. Kg3 {[%clk 0:00:00]}  Kf7 {[%clk 0:00:00]} 28. Kf4 {[%clk 0:00:00]}  Ke7+ {[%clk 0:00:00]} 29. Ke5 {[%clk 0:00:00]}  Rf2 {[%clk 0:00:00]} 30. Re2 {[%clk 0:00:00]}  Rxe2+ {[%clk 0:00:00]} 31. Bxe2 {[%clk 0:00:00]}  Nf5 {[%clk 0:00:00]} 32. g4 {[%clk 0:00:00]}  Nd6 {[%clk 0:00:00]} 33. b3 {[%clk 0:00:00]}  Nf7+ {[%clk 0:00:00]} 34. Kd4 {[%clk 0:00:00]}  Kd6 {[%clk 0:00:00]} 35. h4 {[%clk 0:00:00]}  h6 {[%clk 0:00:00]} 36. Ke3 {[%clk 0:00:00]}  g5 {[%clk 0:00:00]} 37. hxg5 {[%clk 0:00:00]}  hxg5 {[%clk 0:00:00]} 38. Kd4 {[%clk 0:00:00]}  e5+ {[%clk 0:00:00]} 39. Ke3 {[%clk 0:00:00]}  Nd8 {[%clk 0:00:00]} 40. Bd3 {[%clk 0:00:00]}  e4 {[%clk 0:00:00]} 41. Bxe4 {[%clk 0:00:00]}  dxe4 {[%clk 0:00:00]} 42. Kxe4 {[%clk 0:00:00]}  Ke6 {[%clk 0:00:00]} 43. Kd4 {[%clk 0:00:00]}  Nc6+ {[%clk 0:00:00]} 44. Kc4 {[%clk 0:00:00]}  Ne5+ {[%clk 0:00:00]} 45. Kc5 {[%clk 0:00:00]}  Nxg4 {[%clk 0:00:00]} 46. Kb4 {[%clk 0:00:00]}  Ne5 {[%clk 0:00:00]} 0-1


[Site "https://www.chess.com"]

[Event "Titled Tuesday Blitz August 16 Early 2022"]
[White "Yaniuk, Volodymyr"]
[Black "Paravyan, David"]
[WhiteFideId "14133083"]
[BlackFideId "4194985"]
[WhiteElo "2141"]
[BlackElo "2569"]
[Result "0-1"]
[Round "01"]
[TimeControl "180+1"]
[Date "2022.08.16"]
[WhiteClock "0:00:41"]
[BlackClock "0:00:34"]

1. d4 {[%clk 0:02:59]}  Nf6 {[%clk 0:02:59]} 2. Nf3 {[%clk 0:02:59]}  g6 {[%clk 0:02:59]} 3. c4 {[%clk 0:02:58]}  Bg7 {[%clk 0:03:00]} 4. Nc3 {[%clk 0:02:58]}  d5 {[%clk 0:03:00]} 5. Bg5 {[%clk 0:02:57]}  Ne4 {[%clk 0:02:59]} 6. Bf4 {[%clk 0:02:53]}  Nxc3 {[%clk 0:02:59]} 7. bxc3 {[%clk 0:02:54]}  c6 {[%clk 0:02:57]} 8. e3 {[%clk 0:02:54]}  O-O {[%clk 0:02:57]} 9. Qb3 {[%clk 0:02:53]}  dxc4 {[%clk 0:02:57]} 10. Bxc4 {[%clk 0:02:54]}  b5 {[%clk 0:02:57]} 11. Be2 {[%clk 0:02:53]}  Be6 {[%clk 0:02:57]} 12. Qc2 {[%clk 0:02:49]}  Nd7 {[%clk 0:02:58]} 13. a4 {[%clk 0:02:49]}  a6 {[%clk 0:02:56]} 14. O-O {[%clk 0:02:48]}  Nb6 {[%clk 0:02:55]} 15. axb5 {[%clk 0:02:47]}  cxb5 {[%clk 0:02:46]} 16. Ne5 {[%clk 0:02:43]}  Qc8 {[%clk 0:02:31]} 17. Bf3 {[%clk 0:02:35]}  Bd5 {[%clk 0:02:27]} 18. e4 {[%clk 0:02:33]}  Bb7 {[%clk 0:02:19]} 19. Qb3 {[%clk 0:02:32]}  Qe6 {[%clk 0:01:57]} 20. Qb4 {[%clk 0:02:07]}  Rac8 {[%clk 0:01:48]} 21. d5 {[%clk 0:02:06]}  Qd6 {[%clk 0:01:40]} 22. Qd4 {[%clk 0:01:50]}  Nc4 {[%clk 0:01:31]} 23. Nxc4 {[%clk 0:01:21]}  Qxf4 {[%clk 0:01:29]} 24. Qe3 {[%clk 0:01:19]}  Qxe3 {[%clk 0:01:25]} 25. Nxe3 {[%clk 0:01:19]}  Rxc3 {[%clk 0:01:25]} 26. Rab1 {[%clk 0:01:14]}  Bd4 {[%clk 0:01:17]} 27. Nd1 {[%clk 0:01:11]}  Rc2 {[%clk 0:01:11]} 28. Ne3 {[%clk 0:01:11]}  Rc3 {[%clk 0:01:10]} 29. Rfd1 {[%clk 0:01:11]}  Be5 {[%clk 0:01:00]} 30. Ng4 {[%clk 0:01:07]}  Bg7 {[%clk 0:01:00]} 31. d6 {[%clk 0:01:00]}  exd6 {[%clk 0:01:01]} 32. Rxd6 {[%clk 0:01:01]}  Rfc8 {[%clk 0:00:57]} 33. h3 {[%clk 0:00:57]}  h5 {[%clk 0:00:53]} 34. Nf6+ {[%clk 0:00:55]}  Bxf6 {[%clk 0:00:54]} 35. Rxf6 {[%clk 0:00:55]}  Rc1+ {[%clk 0:00:54]} 36. Rxc1 {[%clk 0:00:54]}  Rxc1+ {[%clk 0:00:55]} 37. Kh2 {[%clk 0:00:54]}  Rc6 {[%clk 0:00:56]} 38. Rf4 {[%clk 0:00:52]}  Rc4 {[%clk 0:00:52]} 39. Rf6 {[%clk 0:00:51]}  Rc6 {[%clk 0:00:52]} 40. Rf4 {[%clk 0:00:51]}  Rb6 {[%clk 0:00:51]} 41. Bd1 {[%clk 0:00:46]}  Kg7 {[%clk 0:00:49]} 42. Bb3 {[%clk 0:00:46]}  Rf6 {[%clk 0:00:48]} 43. Kg3 {[%clk 0:00:44]}  Rxf4 {[%clk 0:00:46]} 44. Kxf4 {[%clk 0:00:45]}  a5 {[%clk 0:00:46]} 45. Ke5 {[%clk 0:00:43]}  a4 {[%clk 0:00:40]} 46. Bc2 {[%clk 0:00:42]}  a3 {[%clk 0:00:39]} 47. Bb3 {[%clk 0:00:42]}  Bc8 {[%clk 0:00:39]} 48. Kd4 {[%clk 0:00:41]}  Be6 {[%clk 0:00:37]} 49. Kc3 {[%clk 0:00:41]}  a2 {[%clk 0:00:34]} 50. Bxa2 {[%clk 0:00:40]}  Bxa2 {[%clk 0:00:35]} 51. Kb4 {[%clk 0:00:41]}  Bc4 {[%clk 0:00:34]} 52. f4 {[%clk 0:00:41]}  Bf1 {[%clk 0:00:34]} 53. g4 {[%clk 0:00:41]} 0-1


[Site "https://www.chess.com"]

[Event "Titled Tuesday Blitz August 16 Early 2022"]
[White "Yuan, Qingyu"]
[Black "Manukian, Artak"]
[WhiteFideId "8609772"]
[BlackFideId "13301373"]
[WhiteElo "2359"]
[BlackElo "2196"]
[Result "1/2-1/2"]
[Round "01"]
[TimeControl "180+2"]
[Date "2022.08.18"]
[WhiteClock "0:00:00"]
[BlackClock "0:00:00"]

1. e4 {[%clk 0:00:00]}  c6 {[%clk 0:00:00]} 2. d4 {[%clk 0:00:00]}  d5 {[%clk 0:00:00]} 3. e5 {[%clk 0:00:00]}  Bf5 {[%clk 0:00:00]} 4. Nf3 {[%clk 0:00:00]}  e6 {[%clk 0:00:00]} 5. Bd3 {[%clk 0:00:00]}  Bxd3 {[%clk 0:00:00]} 6. Qxd3 {[%clk 0:00:00]}  Qa5+ {[%clk 0:00:00]} 7. Nbd2 {[%clk 0:00:00]}  Qa6 {[%clk 0:00:00]} 8. c4 {[%clk 0:00:00]}  Bb4 {[%clk 0:00:00]} 9. O-O {[%clk 0:00:00]}  Ne7 {[%clk 0:00:00]} 10. b3 {[%clk 0:00:00]}  O-O {[%clk 0:00:00]} 11. Bb2 {[%clk 0:00:00]}  Nf5 {[%clk 0:00:00]} 12. a3 {[%clk 0:00:00]}  Bxd2 {[%clk 0:00:00]} 13. Nxd2 {[%clk 0:00:00]}  Nd7 {[%clk 0:00:00]} 14. Qf3 {[%clk 0:00:00]}  Rad8 {[%clk 0:00:00]} 15. a4 {[%clk 0:00:00]}  Qb6 {[%clk 0:00:00]} 16. a5 {[%clk 0:00:00]}  Qc7 {[%clk 0:00:00]} 17. Rfc1 {[%clk 0:00:00]}  Qb8 {[%clk 0:00:00]} 18. g4 {[%clk 0:00:00]}  Ne7 {[%clk 0:00:00]} 19. Ba3 {[%clk 0:00:00]}  Rfe8 {[%clk 0:00:00]} 20. Bd6 {[%clk 0:00:00]}  Qc8 {[%clk 0:00:00]} 21. Nf1 {[%clk 0:00:00]}  f5 {[%clk 0:00:00]} 22. g5 {[%clk 0:00:00]}  Ng6 {[%clk 0:00:00]} 23. cxd5 {[%clk 0:00:00]}  exd5 {[%clk 0:00:00]} 24. Qxf5 {[%clk 0:00:00]}  Ndxe5 {[%clk 0:00:00]} 25. Qxc8 {[%clk 0:00:00]}  Nf3+ {[%clk 0:00:00]} 26. Kg2 {[%clk 0:00:00]}  Nfh4+ {[%clk 0:00:00]} 27. Kh3 {[%clk 0:00:00]}  Rxc8 {[%clk 0:00:00]} 28. Ne3 {[%clk 0:00:00]}  Nf3 {[%clk 0:00:00]} 29. Nf5 {[%clk 0:00:00]}  Nxg5+ {[%clk 0:00:00]} 30. Kg4 {[%clk 0:00:00]}  Ne4 {[%clk 0:00:00]} 31. f3 {[%clk 0:00:00]}  Nf6+ {[%clk 0:00:00]} 32. Kg3 {[%clk 0:00:00]}  Re6 {[%clk 0:00:00]} 33. Re1 {[%clk 0:00:00]}  Rce8 {[%clk 0:00:00]} 34. Rxe6 {[%clk 0:00:00]}  Rxe6 {[%clk 0:00:00]} 35. Kf2 {[%clk 0:00:00]}  a6 {[%clk 0:00:00]} 36. Rg1 {[%clk 0:00:00]}  Ne8 {[%clk 0:00:00]} 37. Bb8 {[%clk 0:00:00]}  Rf6 {[%clk 0:00:00]} 38. Ne3 {[%clk 0:00:00]}  Nh4 {[%clk 0:00:00]} 39. f4 {[%clk 0:00:00]}  Nf5 {[%clk 0:00:00]} 40. Be5 {[%clk 0:00:00]}  Rf7 {[%clk 0:00:00]} 41. Ng4 {[%clk 0:00:00]}  Nfd6 {[%clk 0:00:00]} 42. Nh6+ {[%clk 0:00:00]}  Kf8 {[%clk 0:00:00]} 43. Nxf7 {[%clk 0:00:00]}  Kxf7 {[%clk 0:00:00]} 44. Kf3 {[%clk 0:00:00]}  g6 {[%clk 0:00:00]} 45. Re1 {[%clk 0:00:00]}  Nf5 {[%clk 0:00:00]} 46. Kg4 {[%clk 0:00:00]}  Nf6+ {[%clk 0:00:00]} 47. Kf3 {[%clk 0:00:00]}  Ne4 {[%clk 0:00:00]} 48. Rd1 {[%clk 0:00:00]}  Nc3 {[%clk 0:00:00]} 49. Rd3 {[%clk 0:00:00]}  Ne4 {[%clk 0:00:00]} 50. Rd1 {[%clk 0:00:00]}  Nc3 {[%clk 0:00:00]} 51. Rd3 {[%clk 0:00:00]}  Ne4 {[%clk 0:00:00]} 52. Ke2 {[%clk 0:00:00]}  Ke6 {[%clk 0:00:00]} 53. Rh3 {[%clk 0:00:00]}  h5 {[%clk 0:00:00]} 54. Rd3 {[%clk 0:00:00]}  Nf6 {[%clk 0:00:00]} 55. h3 {[%clk 0:00:00]}  Ne4 {[%clk 0:00:00]} 56. Kf3 {[%clk 0:00:00]}  Nh4+ {[%clk 0:00:00]} 57. Ke3 {[%clk 0:00:00]}  Nf5+ {[%clk 0:00:00]} 58. Kf3 {[%clk 0:00:00]}  Nh4+ {[%clk 0:00:00]} 59. Ke2 {[%clk 0:00:00]}  Nf5 {[%clk 0:00:00]} 60. Ke1 {[%clk 0:00:00]}  Ned6 {[%clk 0:00:00]} 61. Rd2 {[%clk 0:00:00]}  Ne4 {[%clk 0:00:00]} 62. Rg2 {[%clk 0:00:00]}  Kf7 {[%clk 0:00:00]} 63. Rc2 {[%clk 0:00:00]}  Ke6 {[%clk 0:00:00]} 64. Ke2 {[%clk 0:00:00]}  Nfg3+ {[%clk 0:00:00]} 65. Kf3 {[%clk 0:00:00]}  Nf5 {[%clk 0:00:00]} 66. Rc1 {[%clk 0:00:00]}  Nd2+ {[%clk 0:00:00]} 67. Ke2 {[%clk 0:00:00]}  Ne4 {[%clk 0:00:00]} 68. Kf3 {[%clk 0:00:00]}  Nd2+ {[%clk 0:00:00]} 69. Ke2 {[%clk 0:00:00]}  Ne4 {[%clk 0:00:00]} 70. Kf3 {[%clk 0:00:00]} 1/2-1/2


[Site "https://www.chess.com"]